[Event "*** Titled Tuesday Blitz"]
[Site "Chess.com"]
[Date "2019.08.06"]
[Round "3"]
[White "Mazanchenko_Dmitry"]
[Black "ChrisTool2"]
[Result "0-1"]
[WhiteElo "2187"]
[BlackElo "2277"]
[TimeControl "180+2"]
[EndTime "13:30:47 PDT"]
[Termination "ChrisTool2 won by resignation"]

1. e4 {[%clk 0:03:01.9]} 1... c5 {[%clk 0:02:59.7]} 2. Ne2 {[%clk 0:02:55]} 2...
e6 {[%clk 0:03:00.3]} 3. Nbc3 {[%clk 0:02:56.4]} 3... d6 {[%clk 0:02:58.2]} 4.
g3 {[%clk 0:02:52.8]} 4... Nc6 {[%clk 0:02:58.1]} 5. Bg2 {[%clk 0:02:54.1]} 5...
g6 {[%clk 0:02:58.5]} 6. d4 {[%clk 0:02:53.7]} 6... cxd4 {[%clk 0:02:58.1]} 7.
Nxd4 {[%clk 0:02:55.6]} 7... Bg7 {[%clk 0:02:46.4]} 8. Ndb5 {[%clk 0:02:55.9]}
8... Ke7 {[%clk 0:02:42.5]} 9. Bf4 {[%clk 0:02:53.8]} 9... Be5 {[%clk
0:02:34.9]} 10. Bxe5 {[%clk 0:02:51.2]} 10... dxe5 {[%clk 0:02:31.6]} 11. Qxd8+
{[%clk 0:02:50.2]} 11... Nxd8 {[%clk 0:02:30.5]} 12. O-O-O {[%clk 0:02:51.8]}
12... a6 {[%clk 0:02:26.4]} 13. Na3 {[%clk 0:02:51.7]} 13... b5 {[%clk
0:02:25.1]} 14. Ne2 {[%clk 0:02:50.8]} 14... Bb7 {[%clk 0:02:23.5]} 15. Kb1
{[%clk 0:02:47.6]} 15... Nf6 {[%clk 0:02:24]} 16. f3 {[%clk 0:02:48.1]} 16...
Rc8 {[%clk 0:02:21.7]} 17. Rc1 {[%clk 0:02:46.6]} 17... b4 {[%clk 0:02:21.5]}
18. c4 {[%clk 0:02:27.7]} 18... bxa3 {[%clk 0:02:20.9]} 19. bxa3 {[%clk
0:02:29.6]} 19... Nc6 {[%clk 0:02:19.7]} 0-1

[Event "*** Titled Tuesday Blitz"]
[Site "Chess.com"]
[Date "2019.08.06"]
[Round "3"]
[White "dianamirza"]
[Black "dawtonlms"]
[Result "0-1"]
[WhiteElo "2291"]
[BlackElo "2421"]
[TimeControl "180+2"]
[EndTime "13:31:30 PDT"]
[Termination "dawtonlms won by resignation"]

1. e4 {[%clk 0:02:58.9]} 1... c5 {[%clk 0:02:54.4]} 2. Nc3 {[%clk 0:02:55.2]}
2... a6 {[%clk 0:02:53.9]} 3. f4 {[%clk 0:02:54]} 3... b5 {[%clk 0:02:54.7]} 4.
g3 {[%clk 0:02:54.6]} 4... Bb7 {[%clk 0:02:55.8]} 5. Bg2 {[%clk 0:02:52.8]} 5...
e6 {[%clk 0:02:57.1]} 6. Qe2 {[%clk 0:02:50]} 6... Nc6 {[%clk 0:02:51.7]} 7. d3
{[%clk 0:02:46.6]} 7... g6 {[%clk 0:02:50.3]} 8. Nf3 {[%clk 0:02:40.9]} 8... d6
{[%clk 0:02:50.6]} 9. O-O {[%clk 0:02:39.5]} 9... Bg7 {[%clk 0:02:51.6]} 10. Kh1
{[%clk 0:02:38.3]} 10... Nge7 {[%clk 0:02:52.8]} 11. Nd1 {[%clk 0:02:34.7]}
11... O-O {[%clk 0:02:53.8]} 12. c3 {[%clk 0:02:32.7]} 12... d5 {[%clk
0:02:51.1]} 13. e5 {[%clk 0:02:29.9]} 13... h5 {[%clk 0:02:51]} 14. d4 {[%clk
0:02:30.6]} 14... cxd4 {[%clk 0:02:49.5]} 15. cxd4 {[%clk 0:02:32.5]} 15... Nf5
{[%clk 0:02:50.4]} 16. Be3 {[%clk 0:02:30.5]} 16... Rc8 {[%clk 0:02:50.5]} 17.
Nf2 {[%clk 0:02:28.5]} 17... b4 {[%clk 0:02:45.8]} 18. Rac1 {[%clk 0:02:21]}
18... Qb6 {[%clk 0:02:46.2]} 19. Rfd1 {[%clk 0:02:17.7]} 19... a5 {[%clk
0:02:47]} 20. b3 {[%clk 0:02:16.7]} 20... Ba6 {[%clk 0:02:47.9]} 21. Qd2 {[%clk
0:02:15.6]} 21... Na7 {[%clk 0:02:49.3]} 22. Nd3 {[%clk 0:02:09.6]} 22... Nb5
{[%clk 0:02:43.9]} 23. Nc5 {[%clk 0:02:06.3]} 23... Nc3 {[%clk 0:02:44.7]} 24.
Rf1 {[%clk 0:02:04.7]} 24... Bxf1 {[%clk 0:02:44.6]} 25. Bxf1 {[%clk 0:02:03.3]}
25... Ne4 {[%clk 0:02:42.5]} 26. Qg2 {[%clk 0:02:01.4]} 26... Nxe3 {[%clk
0:02:42.3]} 0-1

[Event "*** Titled Tuesday Blitz"]
[Site "Chess.com"]
[Date "2019.08.06"]
[Round "3"]
[White "StephenDedalus83"]
[Black "qqwow"]
[Result "1-0"]
[WhiteElo "2815"]
[BlackElo "2497"]
[TimeControl "180+2"]
[EndTime "13:31:55 PDT"]
[Termination "StephenDedalus83 won by resignation"]

1. e4 {[%clk 0:02:54.8]} 1... Nc6 {[%clk 0:03:00.7]} 2. Nf3 {[%clk 0:02:55.4]}
2... d6 {[%clk 0:03:02.1]} 3. d4 {[%clk 0:02:55]} 3... Nf6 {[%clk 0:03:03.6]} 4.
Nc3 {[%clk 0:02:55]} 4... Bg4 {[%clk 0:03:05.1]} 5. Be3 {[%clk 0:02:53.5]} 5...
e6 {[%clk 0:03:06.2]} 6. Be2 {[%clk 0:02:48.3]} 6... Be7 {[%clk 0:03:07.5]} 7.
Qd2 {[%clk 0:02:45.7]} 7... O-O {[%clk 0:03:07.9]} 8. O-O-O {[%clk 0:02:45.4]}
8... d5 {[%clk 0:03:09.3]} 9. e5 {[%clk 0:02:42.7]} 9... Ne4 {[%clk 0:03:10.5]}
10. Nxe4 {[%clk 0:02:43.5]} 10... dxe4 {[%clk 0:03:12.4]} 11. Ng1 {[%clk
0:02:44.7]} 11... Bf5 {[%clk 0:03:13.4]} 12. h4 {[%clk 0:02:44.1]} 12... Bxh4
{[%clk 0:02:32.9]} 13. g4 {[%clk 0:02:28.6]} 13... Bg6 {[%clk 0:02:32.9]} 14. g5
{[%clk 0:02:29.2]} 14... Ne7 {[%clk 0:02:14.5]} 15. Rxh4 {[%clk 0:02:26.4]}
15... c5 {[%clk 0:02:15.7]} 16. dxc5 {[%clk 0:02:18.6]} 16... Nd5 {[%clk
0:02:07.3]} 17. Bc4 {[%clk 0:02:07.9]} 17... Nxe3 {[%clk 0:01:59.4]} 18. Qxe3
{[%clk 0:02:08.7]} 18... Qa5 {[%clk 0:01:56.6]} 19. Ne2 {[%clk 0:02:07.5]} 19...
Rac8 {[%clk 0:01:57.2]} 20. Nf4 {[%clk 0:02:03.2]} 20... Rxc5 {[%clk 0:01:56.7]}
21. Nxg6 {[%clk 0:02:04.1]} 21... hxg6 {[%clk 0:01:51.4]} 22. Qh3 {[%clk
0:02:01.1]} 1-0

[Event "*** Titled Tuesday Blitz"]
[Site "Chess.com"]
[Date "2019.08.06"]
[Round "3"]
[White "Er_is_geen_hoop_meer"]
[Black "playablecharacter"]
[Result "1-0"]
[WhiteElo "2359"]
[BlackElo "2218"]
[TimeControl "180+2"]
[EndTime "13:32:07 PDT"]
[Termination "Er_is_geen_hoop_meer won by resignation"]

1. b4 {[%clk 0:03:01.9]} 1... Nf6 {[%clk 0:02:53.7]} 2. Bb2 {[%clk 0:03:03.2]}
2... g6 {[%clk 0:02:51.5]} 3. c4 {[%clk 0:03:03.7]} 3... Bg7 {[%clk 0:02:52.1]}
4. Qc2 {[%clk 0:03:05.6]} 4... O-O {[%clk 0:02:51.7]} 5. Nc3 {[%clk 0:03:07.2]}
5... a5 {[%clk 0:02:52.7]} 6. b5 {[%clk 0:03:08.2]} 6... b6 {[%clk 0:02:51.7]}
7. O-O-O {[%clk 0:03:09.3]} 7... Bb7 {[%clk 0:02:52.3]} 8. e3 {[%clk 0:03:10.2]}
8... c5 {[%clk 0:02:44.9]} 9. Nf3 {[%clk 0:03:11.3]} 9... d5 {[%clk 0:02:41]}
10. cxd5 {[%clk 0:03:13.2]} 10... Nxd5 {[%clk 0:02:41.1]} 11. h4 {[%clk
0:03:15.1]} 11... Nb4 {[%clk 0:02:41.2]} 12. Qb1 {[%clk 0:03:14.8]} 12... c4
{[%clk 0:02:25.1]} 13. Bxc4 {[%clk 0:03:14.8]} 13... Qc7 {[%clk 0:02:20.3]} 14.
Bb3 {[%clk 0:03:15.1]} 14... a4 {[%clk 0:02:14.4]} 15. Bxf7+ {[%clk 0:03:16.2]}
15... Kxf7 {[%clk 0:02:08]} 16. Ng5+ {[%clk 0:03:18.1]} 16... Kg8 {[%clk
0:02:06.4]} 17. Nxh7 {[%clk 0:03:19.4]} 17... a3 {[%clk 0:01:41.1]} 18. Ba1
{[%clk 0:03:18.3]} 18... Bxg2 {[%clk 0:01:36]} 19. Qxg6 {[%clk 0:03:17.2]} 19...
Nxa2+ {[%clk 0:01:27.8]} 20. Kb1 {[%clk 0:03:12.8]} 20... Nxc3+ {[%clk 0:01:09]}
21. Bxc3 {[%clk 0:03:14.7]} 21... a2+ {[%clk 0:01:09.4]} 22. Ka1 {[%clk
0:03:15.4]} 22... Qxc3+ {[%clk 0:01:05.7]} 23. dxc3 {[%clk 0:03:17.3]} 23... Be4
{[%clk 0:01:05.6]} 24. Nf6+ {[%clk 0:03:12.7]} 24... Rxf6 {[%clk 0:00:58.2]} 25.
Qxe4 {[%clk 0:03:14]} 25... Rxf2 {[%clk 0:00:46.3]} 26. Rd8+ {[%clk 0:03:15.1]}
26... Rf8 {[%clk 0:00:44.8]} 27. Rxf8+ {[%clk 0:03:13.5]} 27... Kxf8 {[%clk
0:00:46.2]} 28. Qxa8 {[%clk 0:03:15.4]} 1-0

[Event "*** Titled Tuesday Blitz"]
[Site "Chess.com"]
[Date "2019.08.06"]
[Round "3"]
[White "marianokar"]
[Black "ArnaudovP"]
[Result "0-1"]
[WhiteElo "2430"]
[BlackElo "2652"]
[TimeControl "180+2"]
[EndTime "13:32:43 PDT"]
[Termination "ArnaudovP won by resignation"]

1. d4 {[%clk 0:03:01.9]} 1... Nf6 {[%clk 0:03:00.6]} 2. c4 {[%clk 0:03:02.3]}
2... Nc6 {[%clk 0:03:01.2]} 3. Nf3 {[%clk 0:02:54.3]} 3... e6 {[%clk 0:03:01.8]}
4. e3 {[%clk 0:02:48.4]} 4... Bb4+ {[%clk 0:02:58.3]} 5. Nbd2 {[%clk 0:02:39.4]}
5... O-O {[%clk 0:02:55.9]} 6. a3 {[%clk 0:02:33]} 6... Bxd2+ {[%clk 0:02:56.3]}
7. Qxd2 {[%clk 0:02:34.2]} 7... d6 {[%clk 0:02:57.5]} 8. b4 {[%clk 0:02:33.1]}
8... e5 {[%clk 0:02:58.7]} 9. b5 {[%clk 0:02:21.3]} 9... Ne7 {[%clk 0:02:56.1]}
10. dxe5 {[%clk 0:02:17.5]} 10... Ne4 {[%clk 0:02:56.8]} 11. Qc2 {[%clk
0:02:12.5]} 11... Bf5 {[%clk 0:02:52.5]} 12. Bd3 {[%clk 0:02:12.7]} 12... d5
{[%clk 0:02:53.1]} 13. c5 {[%clk 0:01:54.9]} 13... Ng6 {[%clk 0:02:39.3]} 14.
Nd4 {[%clk 0:01:49.6]} 14... Be6 {[%clk 0:02:31.9]} 15. Nxe6 {[%clk 0:01:17.1]}
15... fxe6 {[%clk 0:02:19.9]} 16. Bxe4 {[%clk 0:01:17.1]} 16... dxe4 {[%clk
0:02:21.1]} 17. Qxe4 {[%clk 0:01:18]} 17... Qe7 {[%clk 0:02:16.3]} 18. O-O
{[%clk 0:00:43.4]} 18... Qxc5 {[%clk 0:02:15.8]} 19. a4 {[%clk 0:00:44.2]} 19...
Qxe5 {[%clk 0:02:15]} 20. Qxb7 {[%clk 0:00:44.8]} 20... Qxa1 {[%clk 0:02:15.1]}
0-1

[Event "*** Titled Tuesday Blitz"]
[Site "Chess.com"]
[Date "2019.08.06"]
[Round "3"]
[White "VladDobrov"]
[Black "vpsetter"]
[Result "1-0"]
[WhiteElo "2933"]
[BlackElo "2649"]
[TimeControl "180+2"]
[EndTime "13:32:48 PDT"]
[Termination "VladDobrov won by resignation"]

1. d4 {[%clk 0:03:01.9]} 1... Nf6 {[%clk 0:03:00.9]} 2. c4 {[%clk 0:03:02.3]}
2... e6 {[%clk 0:03:02.1]} 3. Nf3 {[%clk 0:03:03.8]} 3... d5 {[%clk 0:03:02.7]}
4. Nc3 {[%clk 0:03:04.4]} 4... dxc4 {[%clk 0:03:03.2]} 5. e3 {[%clk 0:03:05.2]}
5... a6 {[%clk 0:03:00.8]} 6. a4 {[%clk 0:03:06.1]} 6... c5 {[%clk 0:02:59.1]}
7. Bxc4 {[%clk 0:03:07.1]} 7... Nc6 {[%clk 0:02:57.5]} 8. O-O {[%clk 0:03:08]}
8... Be7 {[%clk 0:02:58.3]} 9. Qe2 {[%clk 0:03:09.3]} 9... Qc7 {[%clk 0:02:46]}
10. Rd1 {[%clk 0:03:06.6]} 10... O-O {[%clk 0:02:46.5]} 11. b3 {[%clk
0:03:07.4]} 11... cxd4 {[%clk 0:02:34.3]} 12. exd4 {[%clk 0:03:07.2]} 12... Bd7
{[%clk 0:02:25.3]} 13. Bb2 {[%clk 0:02:54]} 13... Nb4 {[%clk 0:02:19.7]} 14. d5
{[%clk 0:02:45.1]} 14... exd5 {[%clk 0:01:21.7]} 15. Qxe7 {[%clk 0:02:38.1]}
15... Nc6 {[%clk 0:01:19.5]} 16. Qxf6 {[%clk 0:02:39.2]} 16... gxf6 {[%clk
0:00:26.5]} 17. Nxd5 {[%clk 0:02:40]} 17... Qa5 {[%clk 0:00:27.2]} 18. Nxf6+
{[%clk 0:02:40.6]} 18... Kh8 {[%clk 0:00:27.8]} 19. Nxd7+ {[%clk 0:02:41.4]}
19... f6 {[%clk 0:00:28.5]} 20. Nxf6 {[%clk 0:02:28.4]} 1-0

[Event "*** Titled Tuesday Blitz"]
[Site "Chess.com"]
[Date "2019.08.06"]
[Round "3"]
[White "alturas_pacificas"]
[Black "paladin_ll"]
[Result "1-0"]
[WhiteElo "2244"]
[BlackElo "2176"]
[TimeControl "180+2"]
[EndTime "13:33:15 PDT"]
[Termination "alturas_pacificas won by checkmate"]

1. d4 {[%clk 0:03:01.9]} 1... Nf6 {[%clk 0:03:00.2]} 2. Bf4 {[%clk 0:03:02.2]}
2... g6 {[%clk 0:02:59.2]} 3. e3 {[%clk 0:03:02.9]} 3... Bg7 {[%clk 0:03:00.1]}
4. Nf3 {[%clk 0:03:04.6]} 4... O-O {[%clk 0:03:01.1]} 5. Be2 {[%clk 0:03:05.9]}
5... d6 {[%clk 0:03:02.2]} 6. O-O {[%clk 0:03:07.4]} 6... Nc6 {[%clk 0:03:03.1]}
7. h3 {[%clk 0:03:08.8]} 7... Re8 {[%clk 0:03:02.8]} 8. c4 {[%clk 0:03:09]} 8...
e5 {[%clk 0:03:03.1]} 9. dxe5 {[%clk 0:03:10.9]} 9... dxe5 {[%clk 0:03:02.5]}
10. Qxd8 {[%clk 0:03:11.4]} 10... Rxd8 {[%clk 0:03:03.2]} 11. Nxe5 {[%clk
0:03:12.9]} 11... Nxe5 {[%clk 0:03:03.9]} 12. Bxe5 {[%clk 0:03:14.8]} 12... Ne4
{[%clk 0:02:53.5]} 13. Bxg7 {[%clk 0:03:06.5]} 13... Kxg7 {[%clk 0:02:54]} 14.
Bf3 {[%clk 0:03:08.1]} 14... Nd2 {[%clk 0:02:51.9]} 15. Nxd2 {[%clk 0:03:00.6]}
15... Rxd2 {[%clk 0:02:52]} 16. b3 {[%clk 0:02:56.9]} 16... c6 {[%clk
0:02:47.4]} 17. Rfd1 {[%clk 0:02:57.6]} 17... Rb2 {[%clk 0:02:46.6]} 18. Rd8
{[%clk 0:02:57]} 18... a5 {[%clk 0:02:46.2]} 19. Re8 {[%clk 0:02:45.2]} 19... a4
{[%clk 0:02:44.8]} 20. bxa4 {[%clk 0:02:36.8]} 20... h5 {[%clk 0:02:40.5]} 21.
Rd1 {[%clk 0:02:34.5]} 21... h4 {[%clk 0:02:24.8]} 22. Rdd8 {[%clk 0:02:33.5]}
22... Rxa4 {[%clk 0:02:24.9]} 23. Rxc8 {[%clk 0:02:32]} 23... Raxa2 {[%clk
0:02:18.7]} 24. Rc7 {[%clk 0:02:26.8]} 24... Ra1+ {[%clk 0:02:14.9]} 25. Kh2
{[%clk 0:02:27]} 25... Rbb1 {[%clk 0:02:16.1]} 26. g3 {[%clk 0:02:21.8]} 26...
Ra2 {[%clk 0:02:06.6]} 27. Kg2 {[%clk 0:01:52.2]} 27... hxg3 {[%clk 0:01:57]}
28. Kxg3 {[%clk 0:01:51.7]} 28... Rbb2 {[%clk 0:01:57.8]} 29. Ree7 {[%clk
0:01:50.5]} 29... Rxf2 {[%clk 0:01:57.2]} 30. Rxf7+ {[%clk 0:01:51.8]} 30... Kh6
{[%clk 0:01:57.7]} 31. Rh7+ {[%clk 0:01:51.3]} 31... Kg5 {[%clk 0:01:58.7]} 32.
h4+ {[%clk 0:01:52.7]} 32... Kf6 {[%clk 0:01:59.7]} 33. Rce7 {[%clk 0:01:49.5]}
33... g5 {[%clk 0:01:52.3]} 34. Rhf7+ {[%clk 0:01:50.7]} 34... Kg6 {[%clk
0:01:52.9]} 35. Be4+ {[%clk 0:01:52.2]} 35... Kh6 {[%clk 0:01:52.4]} 36. Rh7#
{[%clk 0:01:53.2]} 1-0

[Event "*** Titled Tuesday Blitz"]
[Site "Chess.com"]
[Date "2019.08.06"]
[Round "3"]
[White "Mops_2004"]
[Black "Jospem"]
[Result "0-1"]
[WhiteElo "2520"]
[BlackElo "2912"]
[TimeControl "180+2"]
[EndTime "13:33:26 PDT"]
[Termination "Jospem won by resignation"]

1. Nf3 {[%clk 0:03:01.9]} 1... c5 {[%clk 0:03:00.1]} 2. g3 {[%clk 0:03:02.7]}
2... g6 {[%clk 0:03:01.7]} 3. c4 {[%clk 0:03:03.4]} 3... Bg7 {[%clk 0:03:03.4]}
4. Bg2 {[%clk 0:03:04.3]} 4... Nc6 {[%clk 0:03:04.9]} 5. Nc3 {[%clk 0:03:05.2]}
5... e6 {[%clk 0:03:06.3]} 6. O-O {[%clk 0:03:05.6]} 6... d6 {[%clk 0:03:07.7]}
7. a3 {[%clk 0:03:06.1]} 7... Nge7 {[%clk 0:03:09.1]} 8. Rb1 {[%clk 0:03:06.8]}
8... O-O {[%clk 0:03:10.7]} 9. b4 {[%clk 0:03:07.3]} 9... b6 {[%clk 0:03:12.3]}
10. e3 {[%clk 0:03:06.7]} 10... Bb7 {[%clk 0:03:12.6]} 11. Qc2 {[%clk
0:03:07.3]} 11... Rc8 {[%clk 0:03:13.2]} 12. Bb2 {[%clk 0:03:07.1]} 12... cxb4
{[%clk 0:03:11.1]} 13. axb4 {[%clk 0:03:08.1]} 13... Nxb4 {[%clk 0:03:11.7]} 14.
Qa4 {[%clk 0:03:06.3]} 14... a5 {[%clk 0:03:12.8]} 15. Ba3 {[%clk 0:02:52.4]}
15... Rxc4 {[%clk 0:03:03.1]} 16. Bxb4 {[%clk 0:02:52.7]} 16... Nc6 {[%clk
0:02:58.4]} 17. Na2 {[%clk 0:02:18.5]} 17... axb4 {[%clk 0:02:57.1]} 18. Nxb4
{[%clk 0:02:19.3]} 18... d5 {[%clk 0:02:58.4]} 19. Qb5 {[%clk 0:02:00.1]} 19...
Nxb4 {[%clk 0:02:39.4]} 20. Rxb4 {[%clk 0:01:59.8]} 20... Ba6 {[%clk 0:02:40.8]}
21. Qxb6 {[%clk 0:01:49.6]} 21... Rxb4 {[%clk 0:02:40.7]} 22. Qxb4 {[%clk
0:01:43.4]} 22... Bxf1 {[%clk 0:02:41.1]} 23. Bxf1 {[%clk 0:01:45.3]} 23... Qb8
{[%clk 0:02:42.7]} 24. Qxb8 {[%clk 0:01:44.9]} 24... Rxb8 {[%clk 0:02:44.6]} 25.
d4 {[%clk 0:01:45.5]} 25... Rb2 {[%clk 0:02:44.5]} 26. h4 {[%clk 0:01:45.5]}
26... Bf8 {[%clk 0:02:45.3]} 27. Bh3 {[%clk 0:01:44.1]} 27... Bb4 {[%clk
0:02:44.8]} 28. Kg2 {[%clk 0:01:44.6]} 28... Kf8 {[%clk 0:02:46.2]} 29. Bg4
{[%clk 0:01:45.2]} 29... Ke7 {[%clk 0:02:47.3]} 30. h5 {[%clk 0:01:46.4]} 30...
Bd2 {[%clk 0:02:39.9]} 31. Kg1 {[%clk 0:01:42]} 31... f5 {[%clk 0:02:39.7]} 32.
hxg6 {[%clk 0:01:37]} 32... hxg6 {[%clk 0:02:14.4]} 33. Bh3 {[%clk 0:01:37.8]}
33... g5 {[%clk 0:02:15.3]} 34. Nxg5 {[%clk 0:01:28.9]} 34... Be1 {[%clk
0:02:16.1]} 35. f4 {[%clk 0:01:17.1]} 35... Bxg3 {[%clk 0:02:12.1]} 0-1

[Event "*** Titled Tuesday Blitz"]
[Site "Chess.com"]
[Date "2019.08.06"]
[Round "3"]
[White "ChessyInstinct"]
[Black "ilm2034"]
[Result "1-0"]
[WhiteElo "2390"]
[BlackElo "2504"]
[TimeControl "180+2"]
[EndTime "13:33:42 PDT"]
[Termination "ChessyInstinct won by resignation"]

1. d4 {[%clk 0:03:01.9]} 1... d6 {[%clk 0:03:01.1]} 2. c4 {[%clk 0:03:02.9]}
2... Nf6 {[%clk 0:03:02.6]} 3. Nc3 {[%clk 0:03:04]} 3... Bf5 {[%clk 0:03:03.9]}
4. g3 {[%clk 0:03:03.4]} 4... c6 {[%clk 0:03:04.3]} 5. Bg2 {[%clk 0:03:04.7]}
5... d5 {[%clk 0:03:05.9]} 6. Nf3 {[%clk 0:03:01.7]} 6... e6 {[%clk 0:03:07.3]}
7. O-O {[%clk 0:02:59.6]} 7... Bd6 {[%clk 0:03:07.5]} 8. Nh4 {[%clk 0:03:00.7]}
8... Bg6 {[%clk 0:03:08.1]} 9. Nxg6 {[%clk 0:02:53.9]} 9... hxg6 {[%clk
0:03:10]} 10. e4 {[%clk 0:02:54.8]} 10... dxe4 {[%clk 0:03:10.1]} 11. Nxe4
{[%clk 0:02:56.7]} 11... Nxe4 {[%clk 0:03:11]} 12. Bxe4 {[%clk 0:02:58.6]} 12...
Nd7 {[%clk 0:03:12.3]} 13. Re1 {[%clk 0:02:57.7]} 13... g5 {[%clk 0:03:07.8]}
14. d5 {[%clk 0:02:55.4]} 14... cxd5 {[%clk 0:03:08.6]} 15. cxd5 {[%clk
0:02:56.3]} 15... e5 {[%clk 0:03:10.2]} 16. Qa4 {[%clk 0:02:54.4]} 16... Qf6
{[%clk 0:03:09.3]} 17. Be3 {[%clk 0:02:38.9]} 17... g4 {[%clk 0:02:57.2]} 18.
Bd3 {[%clk 0:02:31.7]} 18... Qf3 {[%clk 0:02:24.4]} 19. Be2 {[%clk 0:02:26.6]}
19... Qxd5 {[%clk 0:02:23.4]} 20. Bxg4 {[%clk 0:02:25.2]} 20... Qc6 {[%clk
0:02:12.3]} 21. Qxc6 {[%clk 0:02:07.7]} 21... bxc6 {[%clk 0:02:14.2]} 22. Rad1
{[%clk 0:02:02.6]} 22... Ke7 {[%clk 0:02:13.2]} 23. Rxd6 {[%clk 0:01:53.4]}
23... Kxd6 {[%clk 0:02:11]} 24. Rd1+ {[%clk 0:01:54.6]} 24... Ke7 {[%clk
0:02:11.4]} 25. Rxd7+ {[%clk 0:01:48.4]} 25... Kf6 {[%clk 0:02:10.7]} 26. Rd6+
{[%clk 0:01:45.8]} 26... Ke7 {[%clk 0:02:11.7]} 27. Rxc6 {[%clk 0:01:46.9]}
27... Rad8 {[%clk 0:02:09.3]} 28. Bc5+ {[%clk 0:01:44.7]} 28... Ke8 {[%clk
0:02:09.6]} 29. Rc7 {[%clk 0:01:42.6]} 29... g6 {[%clk 0:02:08.3]} 30. Bf3
{[%clk 0:01:36.5]} 30... Rd2 {[%clk 0:01:52.3]} 31. Bc6+ {[%clk 0:01:21.6]}
31... Kd8 {[%clk 0:01:51.9]} 32. Rxa7 {[%clk 0:01:21.9]} 32... Rxb2 {[%clk
0:01:43.9]} 33. Bd6 {[%clk 0:01:08.8]} 33... Rxa2 {[%clk 0:01:42.2]} 34. Rxa2
{[%clk 0:01:07.7]} 1-0

[Event "*** Titled Tuesday Blitz"]
[Site "Chess.com"]
[Date "2019.08.06"]
[Round "3"]
[White "canwedoit"]
[Black "chessdjw"]
[Result "0-1"]
[WhiteElo "2430"]
[BlackElo "2659"]
[TimeControl "180+2"]
[EndTime "13:33:51 PDT"]
[Termination "chessdjw won by resignation"]

1. d4 {[%clk 0:03:01.9]} 1... g6 {[%clk 0:02:59.8]} 2. e4 {[%clk 0:03:02.8]}
2... d6 {[%clk 0:02:59.8]} 3. Nc3 {[%clk 0:03:03.3]} 3... Bg7 {[%clk 0:03:00.9]}
4. Be3 {[%clk 0:03:03.6]} 4... a6 {[%clk 0:03:00.9]} 5. f3 {[%clk 0:03:04.9]}
5... e6 {[%clk 0:02:59.8]} 6. h4 {[%clk 0:03:04.4]} 6... h6 {[%clk 0:03:00.4]}
7. Qd2 {[%clk 0:03:04.3]} 7... b5 {[%clk 0:03:01.4]} 8. O-O-O {[%clk 0:03:04.9]}
8... Bb7 {[%clk 0:03:02]} 9. h5 {[%clk 0:03:00]} 9... g5 {[%clk 0:03:02.8]} 10.
Bd3 {[%clk 0:02:59.5]} 10... Nd7 {[%clk 0:03:03.6]} 11. f4 {[%clk 0:02:51.5]}
11... gxf4 {[%clk 0:03:02.7]} 12. Bf2 {[%clk 0:02:48.7]} 12... c5 {[%clk
0:02:54.6]} 13. e5 {[%clk 0:02:38.9]} 13... cxd4 {[%clk 0:02:50.4]} 14. Ne4
{[%clk 0:02:09]} 14... Bxe4 {[%clk 0:02:26.5]} 15. Bxe4 {[%clk 0:02:08.9]} 15...
dxe5 {[%clk 0:02:24.1]} 16. Bh4 {[%clk 0:02:03.8]} 16... Ngf6 {[%clk 0:02:20.9]}
17. Bxa8 {[%clk 0:02:03.4]} 17... Qxa8 {[%clk 0:02:22.8]} 18. Nf3 {[%clk
0:02:04.8]} 18... Qd5 {[%clk 0:02:20.4]} 19. Qa5 {[%clk 0:01:59.1]} 19... O-O
{[%clk 0:02:14.3]} 20. Rhe1 {[%clk 0:01:53.5]} 20... Ng4 {[%clk 0:02:14.8]} 21.
Kb1 {[%clk 0:01:42.5]} 21... Ne3 {[%clk 0:02:13.6]} 22. Rd2 {[%clk 0:01:42.3]}
22... Nc4 {[%clk 0:02:13.3]} 23. Qb4 {[%clk 0:01:42.2]} 23... a5 {[%clk
0:02:07.7]} 24. Qe7 {[%clk 0:01:43.7]} 24... e4 {[%clk 0:01:49]} 25. Rdd1 {[%clk
0:01:37.9]} 25... Nxb2 {[%clk 0:01:25.1]} 26. Kxb2 {[%clk 0:01:33.5]} 26... d3+
{[%clk 0:01:26.3]} 27. c3 {[%clk 0:01:08.3]} 27... b4 {[%clk 0:01:21.3]} 0-1